fUST/lending_fUST_20260624
["ID","MTS","AMOUNT","RATE_DAILY","PERIOD"]
[426262658,1782230460000,4228.34,0.00023288,120]
[426262660,1782230492000,20779.46,0.00023235,30]
[426262663,1782230639000,5000.0,0.00011,13]
[426262664,1782230750000,5000.0,0.00023288,120]
[426262665,1782230761000,2500.0,0.0001,10]
[426262666,1782230777000,2500.0,8.604e-05,2]
[426262668,1782230796000,2265.51542258,0.00011,13]
[426262673,1782230850000,-132.86384209,0.00011,13]
[426262672,1782230850000,-151.0,0.00011,13]
[426262674,1782230851000,200.0,0.00023228,120]
[426262724,1782231031000,-2789.11227083,0.00010487,2]
[426262808,1782231040000,-158.04516849,0.0001884,2]
[426262810,1782231040000,-169.09038722,0.0001884,2]
[426262807,1782231040000,-169.617432,0.00018243,2]
[426262806,1782231040000,-191.44332425,0.000143,2]
[426262809,1782231040000,-169.44736871,0.0001884,2]
[426262817,1782231040000,-162.31536106,0.0001884,2]
[426262801,1782231040000,-4530.84340143,0.000107,2]
[426262803,1782231040000,-448.0,0.000107,2]
[426262805,1782231040000,-567.90634422,0.00013,2]
[426262802,1782231040000,-1790.0,0.000107,2]
[426262813,1782231040000,-168.41715417,0.0001884,2]
[426262798,1782231040000,-1692.11680323,0.00010487,2]
[426262799,1782231040000,-857.15659857,0.000107,2]
[426262804,1782231040000,-191.44332425,0.00011,2]
[426262811,1782231040000,-164.90860693,0.0001884,2]
[426262816,1782231040000,-168.53645873,0.0001884,2]
[426262814,1782231040000,-164.72566676,0.0001884,2]
[426262830,1782231040000,-314.36000001,0.000191,2]
[426262827,1782231040000,-186.63438901,0.000191,2]
[426262826,1782231040000,-185.59276437,0.000191,2]
[426262822,1782231040000,-481.48119919,0.00019099,2]
[426262825,1782231040000,-181.45468847,0.000191,2]
[426262828,1782231040000,-269320.15917832,0.000191,2]
[426262812,1782231040000,-164.43616102,0.0001884,2]
[426262823,1782231040000,-403.78717193,0.00019099,2]
[426262819,1782231040000,-174.01938914,0.0001884,2]
[426262821,1782231040000,-4079.78759422,0.00019018,2]
[426262820,1782231040000,-17625.19769342,0.00019,2]
[426262818,1782231040000,-193.31163422,0.0001884,2]
[426262815,1782231040000,-178.24652629,0.0001884,2]
[426262824,1782231040000,-161.96441391,0.000191,2]
[426262854,1782231043000,-204335.92487456,0.000191,2]
[426262856,1782231043000,-802.29921743,0.000191,2]
[426262857,1782231043000,-2967.95577974,0.000191,2]
[426262853,1782231043000,-12439.75097125,0.000191,2]
[426262855,1782231043000,-616.94145189,0.000191,2]
[426262870,1782231046000,-1589.31057918,0.00019,2]
[426262868,1782231046000,-2325.1188052,0.00019,2]
[426262867,1782231046000,-5409.14617314,0.00019,2]
[426262869,1782231046000,-12498.93072132,0.00019,2]
[426262910,1782231238000,-500.01181079,9.9e-05,2]
[426262911,1782231239000,-500.0,9.9e-05,2]
[426262912,1782231240000,-500.0,9.9e-05,2]
[426262913,1782231241000,-589.1199704,9.9e-05,2]
[426262914,1782231242000,-605.21789017,9.9e-05,2]
[426262915,1782231243000,-500.0,9.9e-05,2]
[426262916,1782231244000,-500.0,9.9e-05,2]
[426262917,1782231270000,200.0,0.00022603,120]
[426262962,1782231430000,1898.65351093,0.0001,10]
[426262964,1782231450000,200.0,0.00022812,120]
[426262995,1782231810000,200.0,0.00023103,120]
[426263099,1782232234000,-151.0,9.603e-05,2]
[426263121,1782232239000,-1185.92119889,0.0001,2]
[426263120,1782232239000,-1185.92119889,0.0001,2]
[426263119,1782232239000,-150.22350091,9.9e-05,2]
[426263141,1782232240000,-150.22350091,0.0001287,2]
[426263133,1782232240000,-1214.61674705,0.00011326,7]
[426263138,1782232240000,-2208.71916115,0.00011745,7]
[426263137,1782232240000,-500.0,0.00011744,2]
[426263136,1782232240000,-500.0,0.00011744,2]
[426263135,1782232240000,-517.74712121,0.00011744,2]
[426263134,1782232240000,-229.189,0.00011742,2]
[426263131,1782232240000,-814.07880111,0.000112,2]
[426263132,1782232240000,-2208.71916111,0.00011326,7]
[426263122,1782232240000,-2377.36146634,0.0001,2]
[426263124,1782232240000,-5143.0,0.000104,2]
[426263123,1782232240000,-235.59652131,0.0001,2]
[426263126,1782232240000,-1214.61674705,0.00010487,7]
[426263125,1782232240000,-2208.71916111,0.00010487,7]
[426263128,1782232240000,-1214.61674705,0.00010697,7]
[426263129,1782232240000,-2208.71916111,0.00011011,7]
[426263130,1782232240000,-1214.61674705,0.00011011,7]
[426263139,1782232240000,-1214.61674706,0.00011745,7]
[426263127,1782232240000,-2208.71916111,0.00010697,7]
[426263140,1782232240000,-417.15472785,0.00012,7]
[426263148,1782232240000,-500.0,0.00016712,2]
[426263145,1782232240000,-500.0,0.00016438,2]
[426263142,1782232240000,-3569.81414496,0.00016338,2]
[426263173,1782232240000,-11530.37239005,0.000188,2]
[426263174,1782232240000,-760.07062832,0.000188,2]
[426263157,1782232240000,-337.03683944,0.00018799,2]
[426263156,1782232240000,-163.60894286,0.0001863,2]
[426263158,1782232240000,-2129.12675637,0.000188,2]
[426263154,1782232240000,-400.0,0.000179,2]
[426263155,1782232240000,-163.60894286,0.00017979,2]
[426263150,1782232240000,-500.0,0.0001726,2]
[426263159,1782232240000,-2709.34165567,0.000188,2]
[426263151,1782232240000,-500.0,0.00017534,2]
[426263153,1782232240000,-150.22350091,0.0001782,2]
[426263149,1782232240000,-500.0,0.00016986,2]
[426263146,1782232240000,-500.0,0.00016438,2]
[426263147,1782232240000,-500.0,0.00016712,2]
[426263144,1782232240000,-239.75539488,0.00016438,2]
[426263175,1782232240000,-6268.5,0.000188,2]
[426263143,1782232240000,-260.24460512,0.00016438,2]
[426263152,1782232240000,-345.23487729,0.00017808,2]
[426263176,1782232241000,-2193.7,0.000188,2]
[426263177,1782232241000,-5900.83069268,0.000188,2]
[426263186,1782232243000,-31080.41930752,0.000188,2]
[426263185,1782232243000,-15599.86406594,0.000188,2]
[426263195,1782232246000,-22840.51513723,0.000188,2]
[426263196,1782232308000,-500.0,0.00016438,2]
[426263231,1782232904000,202.0,0.00023288,120]
[426272277,1782233432000,-174.88824955,0.00016438,2]
[426272278,1782233432000,-500.0,0.00016438,2]
[426272279,1782233432000,-500.0,0.00016438,2]
[426272282,1782233432000,-163.60894286,0.00017975,2]
[426272284,1782233432000,-3250.36415436,0.000185,2]
[426272283,1782233432000,-183.351,0.00018326,2]
[426272287,1782233432000,-500.0,0.00018599,2]
[426272281,1782233432000,-160.779083,0.00017581,2]
[426272280,1782233432000,-286.09160316,0.00016712,2]
[426272290,1782233432000,-1974.9,0.00018599,2]
[426272289,1782233432000,-235.92578761,0.00018599,2]
[426272292,1782233432000,-500.0,0.00018599,2]
[426272288,1782233432000,-390.61786974,0.00018599,2]
[426272291,1782233432000,-500.0,0.00018599,2]
[426272294,1782233432000,-8681.14607698,0.000186,2]
[426272296,1782233432000,-3018.87306494,0.000186,2]
[426272286,1782233432000,-500.0,0.00018599,2]
[426272429,1782233439000,-300.0,0.00019178,2]
[426272426,1782233439000,-400.0,0.000189,2]
[426272420,1782233439000,-173.2802689,0.00018849,2]
[426272419,1782233439000,-170.80153039,0.00018849,2]
[426272424,1782233439000,-222.52,0.00018873,2]
[426272433,1782233439000,-202.88057568,0.000193,2]
[426272425,1782233439000,-500.0,0.00018873,2]
[426272431,1782233439000,-220.44447,0.00019234,2]
[426272427,1782233439000,-1974.9,0.00019147,2]
[426272443,1782233439000,-319.30034237,0.00019627,2]
[426272434,1782233439000,-160.0,0.00019322,2]
[426272440,1782233439000,-300.0,0.00019589,3]
[426272421,1782233439000,-165.17479672,0.00018849,2]
[426272418,1782233439000,-171.02622377,0.00018849,2]
[426272411,1782233439000,-168.35969289,0.00018842,2]
[426272428,1782233439000,-600.0,0.00019175,2]
[426272417,1782233439000,-157.02889757,0.00018842,2]
[426272409,1782233439000,-159.65017118,0.00018842,2]
[426272407,1782233439000,-1005.49,0.000187,2]
[426272415,1782233439000,-183.88455477,0.00018842,2]
[426272410,1782233439000,-168.32723224,0.00018842,2]
[426272406,1782233439000,-8983.16920741,0.000186,2]
[426272412,1782233439000,-165.46727422,0.00018842,2]
[426272416,1782233439000,-196.53758765,0.00018842,2]
[426272414,1782233439000,-169.42688335,0.00018842,2]
[426272408,1782233439000,-150.05,0.00018804,2]
[426272403,1782233439000,-871.71238038,0.000186,2]
[426272404,1782233439000,-11219.19736865,0.000186,2]
[426272435,1782233439000,-160.0,0.00019322,2]
[426272430,1782233439000,-184.80641074,0.00019178,7]
[426272437,1782233439000,-204.41789244,0.00019393,2]
[426272422,1782233439000,-1974.9,0.00018873,2]
[426272439,1782233439000,-398.44685072,0.00019506,2]
[426272436,1782233439000,-151.0,0.00019393,2]
[426272467,1782233439000,-14928.29886736,0.0002,2]
[426272472,1782233439000,-1000.0,0.0002,2]
[426272471,1782233439000,-205.82995601,0.0002,2]
[426272470,1782233439000,-456.17888258,0.0002,2]
[426272468,1782233439000,-377.28133548,0.0002,2]
[426272464,1782233439000,-1974.9,0.00019969,2]
[426272465,1782233439000,-25975.91428651,0.0002,2]
[426272473,1782233439000,-162.34565893,0.0002,2]
[426272466,1782233439000,-10640.14359641,0.0002,2]
[426272463,1782233439000,-47145.76072247,0.000199,5]
[426272462,1782233439000,-400.0,0.000199,2]
[426272459,1782233439000,-196.105,0.0001976,2]
[426272461,1782233439000,-428.839816,0.000199,2]
[426272455,1782233439000,-330.34959343,0.00019634,2]
[426272474,1782233439000,-93942.45139048,0.0002,2]
[426272449,1782233439000,-393.0751753,0.00019627,2]
[426272438,1782233439000,-1974.9,0.00019421,2]
[426272441,1782233439000,-1317.88533576,0.000196,2]
[426272445,1782233439000,-336.71938577,0.00019627,2]
[426272444,1782233439000,-336.65446449,0.00019627,2]
[426272446,1782233439000,-330.93454843,0.00019627,2]
[426272454,1782233439000,-346.5605378,0.00019634,2]
[426272458,1782233439000,-733.895,0.0001976,2]
[426272457,1782233439000,-2212.0,0.0001976,2]
[426272448,1782233439000,-367.76910954,0.00019627,2]
[426272452,1782233439000,-342.05244754,0.00019634,2]
[426272450,1782233439000,-314.05779515,0.00019627,2]
[426272475,1782233439000,-23853.57978661,0.0002,2]
[426272456,1782233439000,-1974.9,0.00019695,2]
[426272453,1782233439000,-341.60306078,0.00019634,2]
[426272447,1782233439000,-338.85376671,0.00019627,2]
[426272502,1782233440000,-4263.61234209,0.0002,2]
[426272503,1782233440000,-981.08142789,0.0002,2]
[426272500,1782233440000,-1776.35469447,0.0002,2]
[426272507,1782233441000,-65367.47635657,0.0002,2]
[426272508,1782233441000,-70454.54183199,0.0002,2]
[426272511,1782233441000,-11020.9152461,0.0002,2]
[426272510,1782233441000,-1197.10362736,0.0002,2]
[426272506,1782233441000,-407044.9922735,0.0002,2]
[426272559,1782233443000,-855.27167994,0.0002,2]
[426272612,1782233446000,-6876.66896788,0.0002,2]
[426272613,1782233446000,-270.34176015,0.00020144,2]
[426272622,1782233446000,-504.98169673,0.0002015,2]
[426272616,1782233446000,-297.89533238,0.00020147,2]
[426272618,1782233446000,-165.68334842,0.00020147,2]
[426272620,1782233446000,-478.95051355,0.0002015,2]
[426272614,1782233446000,-258.70938778,0.00020144,2]
[426272635,1782233447000,-1974.9,0.00020243,2]
[426272633,1782233447000,-495.52439015,0.00020157,2]
[426272631,1782233447000,-512.40459116,0.00020157,2]
[426272632,1782233447000,-519.8408067,0.00020157,2]
[426272636,1782233447000,-417.15472785,0.00020467,2]
[426272628,1782233447000,-589.61276294,0.0002015,2]
[426272630,1782233447000,-513.07867131,0.00020157,2]
[426272625,1782233447000,-496.40182265,0.0002015,2]
[426272627,1782233447000,-551.65366432,0.0002015,2]
[426272629,1782233447000,-471.08669272,0.0002015,2]
[426272623,1782233447000,-505.07907866,0.0002015,2]
[426272637,1782233447000,-222.75421434,0.00020487,2]
[426272626,1782233447000,-508.28065006,0.0002015,2]
[426272639,1782233447000,-486.61516828,0.00020489,2]
[426272650,1782233447000,-757.97830246,0.00020498,2]
[426272649,1782233447000,-786.15035059,0.00020498,2]
[426272652,1782233447000,-728.2675364,0.00020498,2]
[426272655,1782233447000,-706.40109138,0.00020498,2]
[426272656,1782233447000,-992.70778033,0.000205,2]
[426272646,1782233447000,-677.70753342,0.00020498,2]
[426272647,1782233447000,-736.52903379,0.00020498,2]
[426272643,1782233447000,-163.93145544,0.00020495,2]
[426272651,1782233447000,-628.11559029,0.00020498,2]
[426272645,1782233447000,-331.36669685,0.00020495,2]
[426272641,1782233447000,-595.79066475,0.00020495,2]
[426272640,1782233447000,-517.41877557,0.00020493,2]
[426272642,1782233447000,-220.30365552,0.00020495,2]
[426272638,1782233447000,-363.63636362,0.00020487,2]
[426272648,1782233447000,-735.53821909,0.00020498,2]
[426272654,1782233447000,-735.19321484,0.00020498,2]
[426276682,1782233860000,205573.6946794,7.6e-05,2]
[426278171,1782234034000,-543.06341372,0.0001,2]
[426278352,1782234051000,-4900.0,0.0001,2]
[426278529,1782234068000,-300.0,0.00010199,2]
[426278705,1782234085000,-300.0,0.00010199,2]
[426278774,1782234102000,-300.0,0.00010199,2]
[426278776,1782234118000,-300.0,0.00010199,2]
[426278778,1782234135000,-300.0,0.00010199,2]
[426278782,1782234152000,-300.0,0.00010199,2]
[426279466,1782234639000,-500.0,0.00018598,2]
[426279463,1782234639000,-363.68942756,0.00017753,7]
[426279465,1782234639000,-1398.88,0.00018598,2]
[426279460,1782234639000,-154.0,0.00016438,7]
[426279459,1782234639000,-156.404,0.00015002,2]
[426279462,1782234639000,-179.35500449,0.00017678,2]
[426279461,1782234639000,-242.45961836,0.00016767,7]
[426279467,1782234639000,-500.0,0.00018696,2]
[426279464,1782234639000,-180.42472335,0.00018358,2]
[426279468,1782234639000,-500.0,0.00018696,2]
[426279470,1782234639000,-500.0,0.00018696,2]
[426279472,1782234639000,-500.0,0.00018696,2]
[426279473,1782234639000,-178.624404,0.00018696,2]
[426279471,1782234639000,-500.0,0.00018696,2]
[426279475,1782234639000,-166.92829776,0.00018857,2]
[426279479,1782234639000,-500.0,0.00018869,2]
[426279469,1782234639000,-500.0,0.00018696,2]
[426279458,1782234639000,-180.42472336,0.00013259,2]
[426279449,1782234639000,-300.0,0.00010402,2]
[426279456,1782234639000,-156.0,0.00010959,2]
[426279441,1782234639000,-300.0,0.00010402,2]
[426279443,1782234639000,-300.0,0.00010402,2]
[426279440,1782234639000,-180.42472336,0.00010199,2]
[426279439,1782234639000,-160.0,0.00010199,2]
[426279442,1782234639000,-300.0,0.00010402,2]
[426279445,1782234639000,-300.0,0.00010402,2]
[426279444,1782234639000,-300.0,0.00010402,2]
[426279477,1782234639000,-177.17499449,0.00018857,2]
[426279448,1782234639000,-300.0,0.00010402,2]
[426279447,1782234639000,-300.0,0.00010402,2]
[426279446,1782234639000,-300.0,0.00010402,2]
[426279450,1782234639000,-300.0,0.00010402,2]
[426279454,1782234639000,-300.0,0.00010402,2]
[426279455,1782234639000,-300.0,0.00010402,2]
[426279453,1782234639000,-300.0,0.00010402,2]
[426279451,1782234639000,-300.0,0.00010402,2]
[426279452,1782234639000,-300.0,0.00010402,2]
[426279457,1782234639000,-348.35219912,0.000115,2]
[426279480,1782234639000,-500.0,0.00018869,2]
[426279517,1782234639000,-500.0,0.00018869,2]
[426279476,1782234639000,-179.56339346,0.00018857,2]
[426279500,1782234639000,-500.0,0.00018869,2]
[426279504,1782234639000,-500.0,0.00018869,2]
[426279503,1782234639000,-500.0,0.00018869,2]
[426279502,1782234639000,-500.0,0.00018869,2]
[426279505,1782234639000,-500.0,0.00018869,2]
[426279506,1782234639000,-500.0,0.00018869,2]
[426279516,1782234639000,-500.0,0.00018869,2]
[426279478,1782234639000,-500.0,0.00018869,2]
[426279510,1782234639000,-651.32750155,0.00018869,2]
[426279507,1782234639000,-500.0,0.00018869,2]
[426279508,1782234639000,-500.0,0.00018869,2]
[426279512,1782234639000,-500.0,0.00018869,2]
[426279511,1782234639000,-500.0,0.00018869,2]
[426279515,1782234639000,-500.0,0.00018869,2]
[426279514,1782234639000,-500.0,0.00018869,2]
[426279513,1782234639000,-500.0,0.00018869,2]
[426279518,1782234639000,-216.84868192,0.00018869,2]
[426279501,1782234639000,-500.0,0.00018869,2]
[426279499,1782234639000,-500.0,0.00018869,2]
[426279509,1782234639000,-500.0,0.00018869,2]
[426279498,1782234639000,-75.05581653,0.00018869,2]
[426279497,1782234639000,-424.94418347,0.00018869,2]
[426279474,1782234639000,-182.24010591,0.00018857,2]
[426279481,1782234639000,-500.0,0.00018869,2]
[426279482,1782234639000,-500.0,0.00018869,2]
[426279484,1782234639000,-500.0,0.00018869,2]
[426279492,1782234639000,-500.0,0.00018869,2]
[426279486,1782234639000,-500.0,0.00018869,2]
[426279491,1782234639000,-500.0,0.00018869,2]
[426279483,1782234639000,-500.0,0.00018869,2]
[426279487,1782234639000,-500.0,0.00018869,2]
[426279488,1782234639000,-500.0,0.00018869,2]
[426279490,1782234639000,-500.0,0.00018869,2]
[426279489,1782234639000,-500.0,0.00018869,2]
[426279494,1782234639000,-76.91468453,0.00018869,2]
[426279493,1782234639000,-500.0,0.00018869,2]
[426279496,1782234639000,-500.0,0.00018869,2]
[426279495,1782234639000,-423.08531547,0.00018869,2]
[426279485,1782234639000,-500.0,0.00018869,2]
[426279524,1782234641000,-191.43064909,0.00018869,2]
[426279522,1782234641000,-283.15131808,0.00018869,2]
[426279523,1782234641000,-600.0,0.00018869,2]
[426279525,1782234641000,-500.0,0.00018869,2]
[426279526,1782234641000,-157.75159254,0.00018869,2]
[426279533,1782234641000,-63.30960388,0.00018869,2]
[426279527,1782234641000,-500.0,0.00018869,2]
[426279529,1782234641000,-500.0,0.00018869,2]
[426279530,1782234641000,-500.0,0.00018869,2]
[426279531,1782234641000,-500.0,0.00018869,2]
[426279532,1782234641000,-500.0,0.00018869,2]
[426279528,1782234641000,-500.0,0.00018869,2]
[426279558,1782234643000,-126.58301722,0.00018869,2]
[426279552,1782234643000,-436.69039612,0.00018869,2]
[426279553,1782234643000,-500.0,0.00018869,2]
[426279556,1782234643000,-500.0,0.00018869,2]
[426279555,1782234643000,-500.0,0.00018869,2]
[426279557,1782234643000,-500.0,0.00018869,2]
[426279559,1782234643000,-373.41698278,0.00018869,2]
[426279554,1782234643000,-500.0,0.00018869,2]
[426279562,1782234643000,-500.0,0.00018869,2]
[426279566,1782234643000,-500.0,0.00018869,2]
[426279563,1782234643000,-500.0,0.00018869,2]
[426279567,1782234643000,-500.0,0.00018869,2]
[426279560,1782234643000,-500.0,0.00018869,2]
[426279561,1782234643000,-500.0,0.00018869,2]
[426279565,1782234643000,-500.0,0.00018869,2]
[426279564,1782234643000,-500.0,0.00018869,2]
[426279571,1782234644000,-21.31191722,0.00018869,2]
[426279570,1782234644000,-500.0,0.00018869,2]
[426279569,1782234644000,-500.0,0.00018869,2]
[426279568,1782234644000,-500.0,0.00018869,2]
[426279572,1782234646000,-478.68808278,0.00018869,2]
[426279574,1782234646000,-500.0,0.00018869,2]
[426279573,1782234646000,-500.0,0.00018869,2]
[426279575,1782234646000,-500.0,0.00018869,2]
[426279578,1782234646000,-500.0,0.00018869,2]
[426279576,1782234646000,-500.0,0.00018869,2]
[426279580,1782234646000,-500.0,0.00018869,2]
[426279582,1782234646000,-235.43165197,0.00018869,2]
[426279579,1782234646000,-500.0,0.00018869,2]
[426279581,1782234646000,-500.0,0.00018869,2]
[426279583,1782234646000,-37.52387072,0.0001887,2]
[426279585,1782234646000,-196.72387073,0.0001887,2]
[426279584,1782234646000,-462.47612928,0.0001887,2]
[426279577,1782234646000,-500.0,0.00018869,2]
[426279588,1782234647000,-489.05273001,0.00018871,2]
[426279594,1782234647000,-199.88251482,0.000191,2]
[426279592,1782234647000,-192.809,0.00019048,2]
[426279589,1782234647000,-1398.88,0.00018872,2]
[426279590,1782234647000,-500.0,0.00018872,2]
[426279586,1782234647000,-345.27682927,0.0001887,2]
[426279591,1782234647000,-433.4581101,0.0001903,2]
[426279595,1782234647000,-208.51128618,0.000191,2]
[426279597,1782234647000,-35252.9369055,0.00019102,2]
[426279598,1782234647000,-62569.0,0.00019102,2]
[426279593,1782234647000,-168.80670115,0.000191,2]
[426279596,1782234647000,-206.50973531,0.000191,2]
[426279636,1782235152000,-341.4383689,0.00015811,2]
[426279713,1782235831000,-2427.08637303,0.00015797,2]
[426279722,1782235838000,-1913.58586091,0.00018734,2]
[426279721,1782235838000,-136.02932656,0.00018622,2]
[426279720,1782235838000,-55.12067344,0.00018622,2]
[426279719,1782235838000,-160.779083,0.00017883,2]
[426279718,1782235838000,-2282.9566649,0.00015797,2]
[426279717,1782235838000,-289.95696207,0.00015797,2]
[426279726,1782235840000,-3112.95,0.00018734,2]
[426279759,1782235843000,-4396.89027739,0.00018802,2]
[426279754,1782235843000,-8280.10114331,0.00018802,2]
[426279752,1782235843000,-559.96830729,0.00018734,2]
[426279753,1782235843000,-500.0,0.000188,2]
[426279820,1782235846000,-8837.31054791,0.00018802,2]
[426279821,1782235846000,-4672.60283677,0.00018802,2]
[426279824,1782235846000,-51184.71618093,0.00018802,2]
[426279823,1782235846000,-229772.14958558,0.00018802,2]
[426279825,1782235846000,-1314.54448679,0.00018802,2]
[426279822,1782235846000,-814.7996497,0.00018802,2]
[426280197,1782237040000,-319.81480103,0.00015476,2]
[426280195,1782237040000,-4764.94316359,0.00015168,2]
[426280199,1782237040000,-312.88216651,0.00015476,2]
[426280198,1782237040000,-365.13712712,0.00015476,2]
[426280196,1782237040000,-235.05683641,0.00015168,2]
[426280204,1782237040000,-697.37496937,0.0001805,2]
[426280202,1782237040000,-310.25468552,0.0001805,2]
[426280201,1782237040000,-271.47284983,0.0001805,2]
[426280203,1782237040000,-484.77294612,0.0001805,2]
[426280206,1782237040000,-1490.15566022,0.00018502,2]
[426280205,1782237040000,-152.92,0.0001823,2]
[426280200,1782237040000,-260.73513876,0.00015476,2]
[426280218,1782237043000,-151.0,0.00018591,2]
[426280215,1782237043000,-1972.10685878,0.00018502,2]
[426280216,1782237043000,-328.52132253,0.00018502,2]
[426280217,1782237043000,-1468.47674624,0.00018502,2]
[426280214,1782237043000,-375.08314122,0.00015476,2]
[426280219,1782237043000,-275.13157682,0.00018591,2]
[426280221,1782237043000,-500.0,0.000186,2]
[426280223,1782237043000,-500.0,0.00018601,2]
[426280222,1782237043000,-165.14805132,0.00018601,2]
[426280224,1782237043000,-191.43064909,0.00018601,2]
[426280220,1782237043000,-500.0,0.000186,2]
[426280225,1782237043000,-413.7003457,0.00018601,2]
[426280226,1782237043000,-75.20009591,0.00018601,2]
[426280228,1782237046000,-424.79990409,0.00018601,2]
[426280227,1782237046000,-1976.35137376,0.00018317,2]
[426280230,1782237046000,-500.0,0.00018601,2]
[426280237,1782237046000,-500.0,0.00018601,2]
[426280233,1782237046000,-157.75159254,0.00018601,2]
[426280232,1782237046000,-595.33859756,0.00018601,2]
[426280229,1782237046000,-500.0,0.00018601,2]
[426280234,1782237046000,-500.0,0.00018601,2]
[426280236,1782237046000,-500.0,0.00018601,2]
[426280246,1782237046000,-82031.71875625,0.00018602,2]
[426280235,1782237046000,-500.0,0.00018601,2]
[426280231,1782237046000,-500.0,0.00018601,2]
[426280241,1782237046000,-500.0,0.00018601,2]
[426280239,1782237046000,-500.0,0.00018601,2]
[426280253,1782237046000,-7855.68216755,0.00018602,2]
[426280252,1782237046000,-21961.15791879,0.00018602,2]
[426280254,1782237046000,-5960.1175103,0.00018602,2]
[426280238,1782237046000,-500.0,0.00018601,2]
[426280249,1782237046000,-745.2003503,0.00018602,2]
[426280251,1782237046000,-226835.93293649,0.00018602,2]
[426280245,1782237046000,-500.0,0.00018601,2]
[426280243,1782237046000,-500.0,0.00018601,2]
[426280244,1782237046000,-500.0,0.00018601,2]
[426280242,1782237046000,-500.0,0.00018601,2]
[426280240,1782237046000,-270.56647775,0.00018601,2]
[426280247,1782237046000,-595.5958337,0.00018602,2]
[426280282,1782237456000,941.15839577,7.6e-05,2]
[426280286,1782237653000,-3609.2652256,0.00011385,2]
[426280354,1782238232000,-2949.22613248,0.00010827,2]
[426280353,1782238232000,-5000.0,0.00010719,2]
[426280356,1782238232000,-320.81182996,0.000118,5]
[426280357,1782238232000,-1349.35484612,0.00012395,2]
[426280355,1782238232000,-9074.19421696,0.000115,2]
[426280481,1782238238000,-500.0,0.00012494,2]
[426280480,1782238238000,-500.0,0.00012494,2]
[426280479,1782238238000,-500.0,0.00012494,2]
[426280476,1782238238000,-635.832592,0.00012494,2]
[426280478,1782238238000,-500.0,0.00012494,2]
[426280477,1782238238000,-500.0,0.00012494,2]
[426280475,1782238238000,-500.0,0.00012494,2]
[426280474,1782238238000,-500.0,0.00012494,2]
[426280472,1782238238000,-500.0,0.00012494,2]
[426280473,1782238238000,-500.0,0.00012494,2]
[426280470,1782238238000,-500.0,0.00012494,2]
[426280471,1782238238000,-294.05201743,0.00012494,2]
[426280469,1782238238000,-500.0,0.00012494,2]
[426280467,1782238238000,-500.0,0.00012494,2]
[426280468,1782238238000,-500.0,0.00012494,2]
[426280465,1782238238000,-500.0,0.00012494,2]
[426280464,1782238238000,-500.0,0.00012494,2]
[426280462,1782238238000,-500.0,0.00012494,2]
[426280463,1782238238000,-500.0,0.00012494,2]
[426280457,1782238238000,-500.0,0.00012494,2]
[426280460,1782238238000,-500.0,0.00012494,2]
[426280461,1782238238000,-500.0,0.00012494,2]
[426280459,1782238238000,-500.0,0.00012494,2]
[426280458,1782238238000,-500.0,0.00012494,2]
[426280456,1782238238000,-500.0,0.00012494,2]
[426280454,1782238238000,-28.31844169,0.00012271,2]
[426280455,1782238238000,-3408.29262909,0.00012395,2]
[426280453,1782238238000,-4971.68155831,0.00012271,2]
[426280482,1782238238000,-500.0,0.00012494,2]
[426280466,1782238238000,-500.0,0.00012494,2]
[426280484,1782238238000,-500.0,0.00012494,2]
[426280512,1782238238000,-514.00902571,0.00013698,2]
[426280486,1782238238000,-500.0,0.00012494,2]
[426280483,1782238238000,-500.0,0.00012494,2]